fUST/lending_fUST_20250831
["ID","MTS","AMOUNT","RATE_DAILY","PERIOD"]
[382514989,1756654253745,-760.45,0.00017548,2]
[382514990,1756654253754,-480.0,0.00017548,2]
[382514991,1756654253764,-480.0,0.00017548,2]
[382514992,1756654253774,-480.0,0.00017548,2]
[382514993,1756654253784,-151.0,0.00017548,2]
[382514994,1756654253794,-480.0,0.00017548,2]
[382514995,1756654253803,-480.0,0.00017548,2]
[382514996,1756654253813,-480.0,0.00017548,2]
[382514997,1756654253823,-480.0,0.00017548,2]
[382514998,1756654253832,-480.0,0.00017548,2]
[382514999,1756654253842,-167.076088,0.00017548,2]
[382515000,1756654253851,-480.0,0.00017548,2]
[382515001,1756654253862,-480.0,0.00017548,2]
[382515002,1756654253871,-480.0,0.00017548,2]
[382515003,1756654253880,-500.0,0.00017548,2]
[382515004,1756654253890,-480.0,0.00017548,2]
[382515005,1756654253901,-799.67,0.00017548,2]
[382515006,1756654253913,-151.0,0.00017548,2]
[382515007,1756654253923,-274.433023,0.00017548,2]
[382515008,1756654253933,-480.0,0.00017548,2]
[382515009,1756654253944,-782.4,0.00017548,2]
[382515010,1756654253954,-480.0,0.00017548,2]
[382515011,1756654253963,-151.0,0.00017548,2]
[382515012,1756654253973,-988.17,0.00017548,2]
[382515013,1756654253984,-151.0,0.00017548,2]
[382515014,1756654253994,-480.0,0.00017548,2]
[382515015,1756654254004,-151.0,0.00017548,2]
[382515016,1756654254014,-151.0,0.00017548,2]
[382515017,1756654254023,-151.0,0.00017548,2]
[382515018,1756654254034,-480.0,0.00017548,2]
[382515019,1756654254043,-226.906472,0.00017548,2]
[382515020,1756654254053,-480.0,0.00017548,2]
[382515021,1756654254062,-151.0,0.00017548,2]
[382515022,1756654254072,-480.0,0.00017548,2]
[382515023,1756654254081,-151.0,0.00017548,2]
[382515024,1756654254091,-627.93,0.00017548,2]
[382515025,1756654254100,-480.0,0.00017548,2]
[382515026,1756654254110,-396.759893,0.00017548,2]
[382515027,1756654254120,-396.759893,0.00017548,2]
[382515028,1756654254129,-396.759893,0.00017548,2]
[382515029,1756654254139,-480.0,0.00017548,2]
[382515030,1756654254149,-396.759893,0.00017548,2]
[382515031,1756654254158,-480.0,0.00017548,2]
[382515032,1756654254168,-887.17,0.00017548,2]
[382515033,1756654254178,-480.0,0.00017548,2]
[382515034,1756654254187,-480.0,0.00017548,2]
[382515035,1756654254197,-480.0,0.00017548,2]
[382515036,1756654254208,-211.109368,0.00017548,2]
[382515037,1756654254218,-211.109368,0.00017548,2]
[382515038,1756654254228,-211.109368,0.00017548,2]
[382515039,1756654254238,-480.0,0.00017548,2]
[382515040,1756654254248,-211.109368,0.00017548,2]
[382515041,1756654254259,-498.92,0.00017548,2]
[382515042,1756654254270,-480.0,0.00017548,2]
[382515043,1756654254282,-480.0,0.00017548,2]
[382515044,1756654254292,-151.0,0.00017548,2]
[382515045,1756654254303,-1036.3,0.00017548,2]
[382515046,1756654254314,-405.51587298,0.00017548,2]
[382515047,1756654254324,-480.0,0.00017548,2]
[382515048,1756654254334,-480.0,0.00017548,2]
[382515049,1756654254344,-480.0,0.00017548,2]
[382515050,1756654254354,-480.0,0.00017548,2]
[382515051,1756654254364,-480.0,0.00017548,2]
[382515052,1756654254375,-480.0,0.00017548,2]
[382515053,1756654254385,-1166.43,0.00017548,2]
[382515054,1756654254396,-538.57,0.00017548,2]
[382515055,1756654254407,-1263.67,0.00017548,2]
[382515056,1756654254416,-526.9,0.00017548,2]
[382515057,1756654254426,-480.0,0.00017548,2]
[382515058,1756654254436,-480.0,0.00017548,2]
[382515059,1756654254446,-480.0,0.00017548,2]
[382515060,1756654254456,-772.65,0.00017548,2]
[382515061,1756654254467,-1121.22,0.00017548,2]
[382515062,1756654254479,-515.15,0.00017548,2]
[382515063,1756654254490,-480.0,0.00017548,2]
[382515064,1756654254500,-555.89,0.00017548,2]
[382515065,1756654254510,-480.0,0.00017548,2]
[382515066,1756654254520,-558.04,0.00017548,2]
[382515067,1756654254530,-480.0,0.00017548,2]
[382515068,1756654254540,-151.0,0.00017548,2]
[382515069,1756654254550,-151.0,0.00017548,2]
[382515070,1756654254560,-480.0,0.00017548,2]
[382515071,1756654254569,-152.953308,0.00017548,2]
[382515072,1756654254578,-152.953308,0.00017548,2]
[382515073,1756654254588,-152.953308,0.00017548,2]
[382515074,1756654254598,-152.953308,0.00017548,2]
[382515075,1756654254608,-480.0,0.00017548,2]
[382515076,1756654254617,-694.21,0.00017548,2]
[382515077,1756654254627,-1136.59,0.00017548,2]
[382515078,1756654254636,-163.951718,0.00017548,2]
[382515079,1756654254646,-480.0,0.00017548,2]
[382515080,1756654254656,-163.951718,0.00017548,2]
[382515081,1756654254665,-163.951718,0.00017548,2]
[382515082,1756654254675,-480.0,0.00017548,2]
[382515083,1756654254685,-480.0,0.00017548,2]
[382515084,1756654254695,-163.951718,0.00017548,2]
[382515085,1756654254704,-480.0,0.00017548,2]
[382515086,1756654254715,-480.0,0.00017548,2]
[382515087,1756654254725,-480.0,0.00017548,2]
[382515088,1756654254735,-2003.24,0.00017548,2]
[382515089,1756654254745,-151.0,0.00017548,2]
[382515090,1756654254756,-847.94,0.00017548,2]
[382515091,1756654254768,-151.0,0.00017548,2]
[382515092,1756654254779,-151.0,0.00017548,2]
[382515093,1756654254790,-1000.0,0.00017548,2]
[382515094,1756654254801,-151.0,0.00017548,2]
[382515095,1756654254811,-1000.0,0.00017548,2]
[382515096,1756654254824,-1000.0,0.00017548,2]
[382515097,1756654254835,-1000.0,0.00017548,2]
[382515098,1756654254846,-1000.0,0.00017548,2]
[382515099,1756654254856,-1000.0,0.00017548,2]
[382515100,1756654254865,-151.0,0.00017548,2]
[382515101,1756654254875,-1000.0,0.00017548,2]
[382515102,1756654254886,-1000.0,0.00017548,2]
[382515103,1756654254896,-1000.0,0.00017548,2]
[382515104,1756654254906,-1000.0,0.00017548,2]
[382515105,1756654254916,-1000.0,0.00017548,2]
[382515106,1756654254925,-1000.0,0.00017548,2]
[382515107,1756654254935,-1000.0,0.00017548,2]
[382515108,1756654254944,-1000.0,0.00017548,2]
[382515109,1756654254955,-1000.0,0.00017548,2]
[382515110,1756654254964,-1000.0,0.00017548,2]
[382515111,1756654254975,-1000.0,0.00017548,2]
[382515112,1756654254985,-1000.0,0.00017548,2]
[382515113,1756654254995,-1000.0,0.00017548,2]
[382515114,1756654255005,-1000.0,0.00017548,2]
[382515115,1756654255014,-1000.0,0.00017548,2]
[382515116,1756654255024,-1000.0,0.00017548,2]
[382515117,1756654255033,-1000.0,0.00017548,2]
[382515118,1756654255043,-1000.0,0.00017548,2]
[382515119,1756654255053,-868.837679,0.00017548,2]
[382515120,1756654255063,-151.0,0.00017548,2]
[382515121,1756654255073,-259.411577,0.00017548,2]
[382515122,1756654255083,-151.0,0.00017548,2]
[382515123,1756654255093,-151.0,0.00017549,2]
[382515124,1756654255103,-345.62403069,0.00017549,2]
[382515125,1756654255112,-480.0,0.00017549,2]
[382515126,1756654255122,-480.0,0.00017549,2]
[382515127,1756654255131,-917.68,0.00017549,2]
[382515128,1756654255140,-480.0,0.00017549,2]
[382515129,1756654255150,-547.42,0.00017549,2]
[382515130,1756654255160,-480.0,0.00017549,2]
[382515131,1756654255169,-536.29,0.00017549,2]
[382515132,1756654255179,-250.385,0.00017549,2]
[382515133,1756654255189,-529.93,0.00017549,2]
[382515134,1756654255198,-810.3,0.00017549,2]
[382515135,1756654255209,-523.9,0.00017549,2]
[382515136,1756654255219,-502.16,0.00017549,2]
[382515137,1756654255228,-872.97,0.00017549,2]
[382515138,1756654255239,-1125.4,0.00017549,2]
[382515139,1756654255249,-1309.14,0.00017549,2]
[382515140,1756654255260,-480.0,0.00017549,2]
[382515141,1756654255270,-1309.99,0.00017549,2]
[382515142,1756654255279,-632.21,0.00017549,2]
[382515143,1756654255289,-480.0,0.00017549,2]
[382515144,1756654255299,-480.0,0.00017549,2]
[382515145,1756654255438,-481.15,0.00017549,2]
[382515146,1756654255448,-480.0,0.00017549,2]
[382515147,1756654255459,-481.7167146,0.00017549,2]
[382515148,1756654255469,-689.78,0.00017549,2]
[382515149,1756654255482,-151.0,0.00017549,2]
[382515150,1756654255492,-151.0,0.00017549,2]
[382515151,1756654255503,-293.103662,0.00017549,2]
[382515152,1756654255513,-185.876676,0.0001755,2]
[382515153,1756654255522,-185.876676,0.0001755,2]
[382515154,1756654255533,-185.876676,0.0001755,2]
[382515155,1756654255543,-185.876676,0.0001755,2]
[382515156,1756654255553,-596.72,0.0001755,2]
[382515157,1756654255563,-480.0,0.0001755,2]
[382515158,1756654255572,-151.0,0.0001755,2]
[382515159,1756654255582,-184.400329,0.0001755,2]
[382515160,1756654255592,-151.0,0.0001755,2]
[382515161,1756654255602,-480.0,0.00017551,2]
[382515162,1756654255611,-703.8,0.00017551,2]
[382515163,1756654255621,-480.64942555,0.00017551,2]
[382515164,1756654255630,-1631.16,0.00017551,2]
[382515165,1756654255640,-480.0,0.00017551,2]
[382515166,1756654255650,-481.39767338,0.00017551,2]
[382515167,1756654255659,-600.81,0.00017551,2]
[382515168,1756654255668,-876.15,0.00017551,2]
[382515169,1756654255678,-567.37918417,0.00017551,2]
[382515170,1756654255688,-480.0,0.00017551,2]
[382515171,1756654255698,-151.0,0.00017551,2]
[382515172,1756654255708,-480.0,0.00017551,2]
[382515173,1756654255717,-568.98,0.00017551,2]
[382515174,1756654255727,-480.0,0.00017551,2]
[382515175,1756654255737,-480.0,0.00017551,2]
[382515176,1756654255746,-480.0,0.00017551,2]
[382515177,1756654255756,-678.7,0.00017551,2]
[382515178,1756654255765,-480.0,0.00017551,2]
[382515179,1756654255775,-480.0,0.00017551,2]
[382515180,1756654255785,-480.0,0.00017551,2]
[382515181,1756654255795,-480.0,0.00017551,2]
[382515182,1756654255805,-480.0,0.00017551,2]
[382515183,1756654255814,-487.56151785,0.00017551,2]
[382515184,1756654255824,-762.83,0.00017551,2]
[382515185,1756654255834,-642.22,0.00017551,2]
[382515186,1756654255844,-480.0,0.00017551,2]
[382515187,1756654255854,-574.82,0.00017551,2]
[382515188,1756654255863,-151.0,0.00017551,2]
[382515189,1756654255873,-151.0,0.00017551,2]
[382515190,1756654255883,-151.0,0.00017551,2]
[382515191,1756654255892,-485.0,0.0001756,2]
[382515192,1756654255902,-500.0,0.00017573,2]
[382515193,1756654255912,-500.0,0.00017573,2]
[382515194,1756654255922,-500.0,0.00017573,2]
[382515195,1756654255932,-500.0,0.00017573,2]
[382515196,1756654255942,-500.0,0.00017573,2]
[382515197,1756654255952,-500.0,0.00017573,2]
[382515198,1756654255962,-500.0,0.00017573,2]
[382515199,1756654255972,-500.0,0.00017573,2]
[382515200,1756654255983,-500.0,0.00017573,2]
[382515201,1756654255993,-500.0,0.00017573,2]
[382515202,1756654256004,-500.0,0.00017573,2]
[382515203,1756654256013,-500.0,0.00017573,2]
[382515204,1756654256023,-500.0,0.00017573,2]
[382515205,1756654256032,-158.65713755,0.00017573,2]
[382515206,1756654256043,-500.0,0.00017573,2]
[382515207,1756654256052,-504.83033594,0.00017573,2]
[382515208,1756654256061,-500.0,0.00017573,2]
[382515209,1756654256071,-500.39149769,0.00017573,2]
[382515210,1756654256081,-500.0,0.00017573,2]
[382515211,1756654256091,-518.48245204,0.00017573,2]
[382515212,1756654256101,-500.0,0.00017573,2]
[382515213,1756654256110,-543.95879641,0.00017573,2]
[382515214,1756654256120,-500.0,0.00017573,2]
[382515215,1756654256130,-500.0,0.00017573,2]
[382515216,1756654256139,-500.0,0.00017573,2]
[382515217,1756654256149,-500.0,0.00017573,2]
[382515218,1756654256159,-500.0,0.00017573,2]
[382515219,1756654256170,-500.0,0.00017573,2]
[382515220,1756654256180,-213.6364315,0.00017573,2]
[382515221,1756654256190,-500.44109157,0.00017573,2]
[382515222,1756654256200,-500.0,0.00017573,2]
[382515223,1756654256210,-500.0,0.00017573,2]
[382515224,1756654256219,-500.0,0.00017573,2]
[382515225,1756654256229,-500.0,0.00017573,2]
[382515226,1756654256239,-501.21878673,0.00017573,2]
[382515227,1756654256249,-500.0,0.00017573,2]
[382515228,1756654256259,-500.0,0.00017573,2]
[382515229,1756654256269,-500.0,0.00017573,2]
[382515230,1756654256279,-386.52954866,0.00017573,2]
[382515231,1756654256289,-500.0,0.00017573,2]
[382515232,1756654256299,-500.0,0.00017573,2]
[382515233,1756654256308,-502.06332901,0.00017573,2]
[382515234,1756654256318,-181.91700237,0.00017573,2]
[382515235,1756654256328,-500.0,0.00017573,2]
[382515236,1756654256337,-151.0,0.000176,2]
[382515237,1756654256347,-151.0,0.000176,2]
[382515238,1756654256357,-2098.79470144,0.000176,2]
[382515239,1756654256367,-485.0,0.00017622,2]
[382515240,1756654256386,-502.0,0.00017636,2]
[382515241,1756654256404,-151.0,0.00017647,2]
[382515242,1756654256419,-239.35076144,0.00017647,2]
[382515243,1756654256437,-151.0,0.00017647,2]
[382515244,1756654256453,-151.0,0.00017647,2]
[382515245,1756654256469,-151.0,0.00017647,2]
[382515246,1756654256485,-151.0,0.00017647,2]
[382515247,1756654256501,-151.0,0.00017647,2]
[382515248,1756654256516,-500.0,0.00017647,2]
[382515249,1756654256529,-500.0,0.00017647,2]
[382515250,1756654256546,-500.0,0.00017647,2]
[382515251,1756654256564,-151.0,0.00017647,2]
[382515252,1756654256583,-151.0,0.00017647,2]
[382515253,1756654256595,-151.0,0.00017647,2]
[382515254,1756654256610,-500.0,0.00017647,2]
[382515255,1756654256627,-151.0,0.00017651,2]
[382515256,1756654256641,-151.0,0.00017651,2]
[382515257,1756654256656,-151.0,0.00017651,2]
[382515258,1756654256670,-151.0,0.00017651,2]
[382515259,1756654256685,-151.0,0.00017651,2]
[382515260,1756654256698,-168.0,0.00017671,2]
[382515261,1756654256713,-2561.93480232,0.00017672,2]
[382515262,1756654256727,-11364.23969824,0.0001768,2]
[382515263,1756654256741,-160.0,0.0001768,2]
[382515264,1756654256756,-160.0,0.0001768,2]
[382515265,1756654256769,-530.02580203,0.0001768,2]
[382515266,1756654256783,-160.0,0.0001768,2]
[382515267,1756654256796,-217.4012883,0.0001768,2]
[382515268,1756654256811,-160.0,0.0001768,2]
[382515269,1756654256824,-417.15472785,0.0001768,2]
[382515270,1756654256839,-160.0,0.0001768,2]
[382515271,1756654256853,-425.75173308,0.0001768,2]
[382515272,1756654256867,-160.0,0.0001768,2]
[382515273,1756654256881,-160.0,0.0001768,2]
[382515274,1756654256895,-845.95363151,0.0001768,2]
[382515275,1756654256909,-232.78794292,0.0001768,2]
[382515276,1756654256923,-160.0,0.0001768,2]
[382515277,1756654256937,-160.0,0.0001768,2]
[382515278,1756654256949,-160.0,0.0001768,2]
[382515279,1756654256963,-151.0,0.000177,2]
[382515280,1756654256978,-151.0,0.000177,2]
[382515281,1756654256995,-151.0,0.000177,2]
[382515282,1756654257009,-151.0,0.000177,2]
[382515283,1756654257024,-14603.14603986,0.00017723,2]
[382515284,1756654257037,-3384.18,0.0001773,2]
[382515285,1756654257051,-848.31,0.0001773,2]
[382515286,1756654257066,-559.28,0.0001773,2]
[382515287,1756654257081,-1812.57,0.0001773,2]
[382515288,1756654257095,-480.0,0.0001773,2]
[382515289,1756654257109,-5549.6,0.0001773,2]
[382515290,1756654257124,-3481.83,0.0001773,2]
[382515291,1756654257139,-728.12,0.0001773,2]
[382515292,1756654257153,-1778.64,0.0001773,2]
[382515293,1756654257167,-1113.13,0.0001773,2]
[382515294,1756654257183,-2079.2,0.0001773,2]
[382515295,1756654257196,-558.4738695,0.00017736,2]
[382515296,1756654257210,-485.0,0.00017745,2]
[382515297,1756654257224,-272.71618602,0.00017772,2]
[382515298,1756654257238,-506.72419393,0.00017777,2]
[382515299,1756654257253,-151.0,0.000178,2]
[382515300,1756654257268,-151.0,0.000178,2]
[382515301,1756654257284,-480.0,0.00017807,2]
[382515302,1756654257299,-825.91,0.00017807,2]
[382515303,1756654257313,-984.18,0.00017807,2]
[382515304,1756654257328,-2233.27,0.00017807,2]
[382515305,1756654257344,-998.67,0.00017807,2]
[382515306,1756654257358,-2547.62,0.00017807,2]
[382515307,1756654257372,-480.0,0.00017807,2]
[382515308,1756654257387,-440.13314868,0.00017807,2]
[382515309,1756654257407,-1105.62,0.00017807,2]
[382515310,1756654257424,-500.0,0.0001781,2]
[382515311,1756654257440,-500.0,0.0001781,2]
[382515312,1756654257454,-248.69622921,0.0001781,2]
[382515313,1756654257470,-500.0,0.0001781,2]
[382515314,1756654257484,-204.64224544,0.0001781,2]
[382515315,1756654257499,-500.0,0.0001781,2]
[382515316,1756654257514,-1665.0,0.0001781,2]
[382515317,1756654257528,-699.13,0.0001781,2]
[382515318,1756654257543,-480.0,0.0001781,2]
[382515319,1756654257558,-480.0,0.0001781,2]
[382515320,1756654257574,-3184.28,0.0001781,2]
[382515321,1756654257588,-487.77,0.0001781,2]
[382515322,1756654257603,-480.0,0.0001781,2]
[382515323,1756654257617,-868.48,0.0001781,2]
[382515324,1756654257632,-1093.46,0.0001781,2]
[382515325,1756654257646,-1000.37,0.0001781,2]
[382515326,1756654257661,-480.0,0.0001781,2]
[382515327,1756654257674,-1069.0,0.0001781,2]
[382515328,1756654257684,-480.0,0.0001781,2]
[382515329,1756654257697,-480.0,0.0001781,2]
[382515330,1756654257709,-1023.83,0.0001781,2]
[382515331,1756654257720,-4134.73,0.0001781,2]
[382515332,1756654257731,-1101.6,0.0001781,2]
[382515333,1756654257742,-480.0,0.0001781,2]
[382515334,1756654257752,-512.87,0.0001781,2]
[382515335,1756654257762,-2003.88,0.0001781,2]
[382515336,1756654257772,-480.0,0.0001781,2]
[382515337,1756654258036,-3329.76,0.0001781,2]
[382515338,1756654258049,-480.0,0.00017811,2]
[382515339,1756654258059,-480.0,0.00017811,2]
[382515340,1756654258069,-880.23,0.00017811,2]
[382515341,1756654258079,-783.53,0.00017811,2]
[382515342,1756654258088,-480.0,0.00017811,2]
[382515343,1756654258098,-2310.0,0.00017811,2]
[382515344,1756654258107,-480.0,0.00017811,2]
[382515345,1756654258117,-224.34141797,0.00017811,2]
[382515346,1756654258126,-1185.55,0.00017811,2]
[382515347,1756654258135,-1545.92,0.00017811,2]
[382515348,1756654258144,-480.0,0.00017811,2]
[382515349,1756654258154,-1262.04,0.00017811,2]
[382515350,1756654258163,-180.25310697,0.00017811,2]
[382515351,1756654258173,-753.12,0.00017811,2]
[382515352,1756654258183,-761.57,0.00017811,2]
[382515353,1756654258193,-720.4,0.00017811,2]
[382515354,1756654258202,-480.0,0.00017811,2]
[382515355,1756654258212,-919.87,0.00017811,2]
[382515356,1756654258221,-1139.21,0.00017811,2]
[382515357,1756654258231,-480.0,0.00017811,2]
[382515358,1756654258240,-151.0,0.00017811,2]
[382515359,1756654258250,-151.0,0.00017811,2]
[382515360,1756654258259,-151.0,0.00017811,2]
[382515361,1756654258269,-480.0,0.00017811,2]
[382515362,1756654258278,-752.94,0.00017811,2]
[382515363,1756654258288,-480.0,0.00017811,2]
[382515364,1756654258297,-396.759893,0.00017811,2]
[382515365,1756654258306,-978.64,0.00017811,2]
[382515366,1756654258315,-396.759893,0.00017811,2]
[382515367,1756654258325,-396.759893,0.00017811,2]
[382515368,1756654258335,-396.759893,0.00017811,2]
[382515369,1756654258344,-807.78,0.00017811,2]
[382515370,1756654258353,-839.28,0.00017811,2]
[382515371,1756654258363,-1306.05,0.00017811,2]
[382515372,1756654258372,-1598.81,0.00017811,2]
[382515373,1756654258382,-211.109368,0.00017811,2]
[382515374,1756654258391,-211.109368,0.00017811,2]
[382515375,1756654258401,-211.109368,0.00017811,2]
[382515376,1756654258411,-659.68,0.00017811,2]
[382515377,1756654258423,-211.109368,0.00017811,2]
[382515378,1756654258433,-1536.73,0.00017811,2]
[382515379,1756654258442,-151.0,0.00017811,2]
[382515380,1756654258452,-1159.5,0.00017811,2]
[382515381,1756654258461,-1060.61,0.00017811,2]
[382515382,1756654258471,-353.68286026,0.00017811,2]
[382515383,1756654258481,-1082.02,0.00017811,2]
[382515384,1756654258491,-1401.88,0.00017811,2]
[382515385,1756654258501,-1480.08,0.00017811,2]
[382515386,1756654258510,-480.0,0.00017811,2]
[382515387,1756654258519,-596.47,0.00017811,2]
[382515388,1756654258528,-1740.89,0.00017811,2]
[382515389,1756654258538,-766.72,0.00017811,2]
[382515390,1756654258547,-614.81,0.00017811,2]
[382515391,1756654258557,-480.0,0.00017811,2]
[382515392,1756654258567,-1420.03,0.00017811,2]
[382515393,1756654258577,-1875.59,0.00017811,2]
[382515394,1756654258586,-1822.42,0.00017811,2]
[382515395,1756654258595,-1453.69,0.00017811,2]
[382515396,1756654258604,-480.0,0.00017811,2]
[382515397,1756654258614,-664.4,0.00017811,2]
[382515398,1756654258623,-480.0,0.00017811,2]
[382515399,1756654258632,-550.93,0.00017811,2]
[382515400,1756654258642,-480.0,0.00017811,2]
[382515401,1756654258651,-493.13,0.00017811,2]
[382515402,1756654258661,-893.19,0.00017811,2]
[382515403,1756654258670,-909.67,0.00017811,2]
[382515404,1756654258679,-1535.28,0.00017811,2]
[382515405,1756654258689,-151.0,0.00017811,2]
[382515406,1756654258699,-748.79,0.00017811,2]
[382515407,1756654258709,-500.0,0.00017812,2]
[382515408,1756654258719,-480.0,0.00017814,2]
[382515409,1756654258728,-1363.95,0.00017814,2]
[382515410,1756654258739,-480.0,0.00017814,2]
[382515411,1756654258748,-480.0,0.00017814,2]
[382515412,1756654258758,-480.0,0.00017814,2]
[382515413,1756654258768,-545.78,0.00017814,2]
[382515414,1756654258778,-480.0,0.00017814,2]
[382515415,1756654258788,-480.0,0.00017814,2]
[382515416,1756654258798,-480.0,0.00017814,2]
[382515417,1756654258807,-480.0,0.00017814,2]
[382515418,1756654258817,-480.0,0.00017814,2]
[382515419,1756654258827,-480.0,0.00017814,2]
[382515420,1756654258836,-904.73,0.00017814,2]
[382515421,1756654258846,-634.44,0.00017814,2]
[382515422,1756654258856,-480.0,0.00017814,2]
[382515423,1756654258865,-480.0,0.00017814,2]
[382515424,1756654258875,-480.0,0.00017814,2]
[382515425,1756654258884,-480.0,0.00017814,2]
[382515426,1756654258893,-480.0,0.00017814,2]
[382515427,1756654258903,-480.0,0.00017814,2]
[382515428,1756654258912,-480.0,0.00017814,2]
[382515429,1756654258923,-751.32,0.00017814,2]
[382515430,1756654258933,-848.18,0.00017814,2]
[382515431,1756654258942,-1003.54,0.00017814,2]
[382515432,1756654258952,-409.7,0.00017814,2]
[382515433,1756654258962,-981.77,0.00017814,2]
[382515434,1756654258971,-480.0,0.00017814,2]
[382515435,1756654258980,-480.0,0.00017814,2]
[382515436,1756654258990,-480.0,0.00017814,2]
[382515437,1756654258999,-485.08,0.00017814,2]
[382515438,1756654259009,-480.0,0.00017814,2]
[382515439,1756654259019,-488.55,0.00017814,2]
[382515440,1756654259028,-480.0,0.00017814,2]
[382515441,1756654259037,-151.0,0.00017814,2]
[382515442,1756654259048,-151.0,0.00017814,2]
[382515443,1756654259057,-151.0,0.00017814,2]
[382515444,1756654259067,-151.0,0.00017814,2]
[382515445,1756654259076,-151.0,0.00017814,2]
[382515446,1756654259085,-151.0,0.00017814,2]
[382515447,1756654259095,-151.0,0.00017814,2]
[382515448,1756654259104,-480.0,0.00017814,2]
[382515449,1756654259113,-480.0,0.00017814,2]
[382515450,1756654259122,-1184.96,0.00017814,2]
[382515451,1756654259132,-151.0,0.00017814,2]
[382515452,1756654259141,-480.0,0.00017814,2]
[382515453,1756654259151,-480.0,0.00017814,2]
[382515454,1756654259161,-480.0,0.00017814,2]
[382515455,1756654259170,-183.18149,0.00017814,2]
[382515456,1756654259181,-183.18149,0.00017814,2]
[382515457,1756654259190,-480.0,0.00017814,2]
[382515458,1756654259200,-183.18149,0.00017814,2]
[382515459,1756654259210,-183.18149,0.00017814,2]
[382515460,1756654259219,-480.0,0.00017814,2]
[382515461,1756654259229,-480.0,0.00017814,2]
[382515462,1756654259239,-151.0,0.00017814,2]
[382515463,1756654259248,-480.0,0.00017814,2]
[382515464,1756654259257,-480.0,0.00017814,2]
[382515465,1756654259267,-480.0,0.00017814,2]
[382515466,1756654259276,-480.0,0.00017814,2]
[382515467,1756654259286,-480.0,0.00017814,2]
[382515468,1756654259295,-532.5,0.00017814,2]
[382515469,1756654259305,-480.0,0.00017814,2]
[382515470,1756654259314,-480.0,0.00017814,2]
[382515471,1756654259323,-480.0,0.00017814,2]
[382515472,1756654259333,-480.0,0.00017814,2]
[382515473,1756654259343,-522.76,0.00017814,2]
[382515474,1756654259352,-480.0,0.00017814,2]
[382515475,1756654259362,-480.0,0.00017814,2]
[382515476,1756654259372,-480.0,0.00017814,2]
[382515477,1756654259381,-151.0,0.00017814,2]
[382515478,1756654259391,-151.0,0.00017814,2]
[382515479,1756654259400,-158.27277284,0.00017814,2]
[382515480,1756654259413,-614.24,0.00017814,2]
[382515481,1756654259422,-480.0,0.00017814,2]
[382515482,1756654259433,-642.46,0.00017814,2]
[382515483,1756654259443,-174.328887,0.00017814,2]
[382515484,1756654259454,-480.0,0.00017814,2]
[382515485,1756654259464,-1592.67,0.00017814,2]
[382515486,1756654259474,-480.0,0.00017814,2]
[382515487,1756654259484,-372.78034639,0.00017814,2]
[382515488,1756654259494,-151.0,0.00017814,2]